bitfinex/quotes_ETHUSD_20240602
["timestamp","ask_amount","ask_price","bid_price","bid_amount"]
[1717334359669,0.0998971,3791.6,3791.2,2.63767]
[1717334360010,0.0998971,3791.5,3791.2,2.63767]
[1717334360406,33.399872,3792.0,3791.2,2.63767]
[1717334360581,0.0998971,3791.4,3791.2,2.63767]
[1717334360780,33.399872,3792.0,3791.2,2.63767]
[1717334361106,0.0998971,3791.9,3791.2,3.1689645]
[1717334364067,0.67012963,3791.9,3791.2,3.1689645]
[1717334366511,0.67012943,3791.9,3791.2,3.1689645]
[1717334369269,0.67012943,3791.9,3791.2,2.63767]
[1717334372935,0.67012943,3791.9,3791.3,2.3893]
[1717334373150,0.0998971,3791.9,3791.3,2.3893]
[1717334375457,0.0998971,3791.9,3791.4,2.63753]
[1717334379564,0.67012801,3791.9,3791.4,2.63753]
[1717334380683,0.6620764,3791.9,3791.4,2.63753]
[1717334381759,0.6620764,3791.9,3791.1,4.91884]
[1717334381964,0.6620764,3791.9,3791.1,5.410724]
[1717334393605,0.09184549,3791.9,3791.3,2.63756]
[1717334394772,0.09184549,3791.9,3791.4,2.3814]
[1717334397445,0.09184549,3791.9,3791.5,2.63744]
[1717334397915,0.09184549,3791.9,3791.5,3.139324]
[1717334403002,0.09184549,3791.9,3791.5,2.63744]
[1717334404331,0.09184549,3791.9,3791.1,2.63769]
[1717334404550,2.4893,3791.8,3791.1,2.63769]
[1717334404712,5.13490763,3791.8,3791.1,2.63769]
[1717334404903,0.09962521,3791.7,3791.1,2.63769]
[1717334405213,0.66989573,3791.7,3791.1,2.63769]
[1717334405416,0.66989573,3791.7,3790.8,5.01935]
[1717334406116,2.4944,3791.6,3790.8,2.63795]
[1717334406528,0.66996525,3791.5,3790.8,2.63795]
[1717334408235,0.09966026,3791.5,3790.8,2.63795]
[1717334413557,0.09966026,3791.5,3791.0,2.63775]
[1717334413713,0.09966026,3791.5,3791.0,5.12255]
[1717334413909,2.4944,3791.9,3791.1,0.512255]
[1717334414148,0.09950606,3791.4,3791.0,5.12255]
[1717334414352,2.4944,3791.9,3791.0,5.12255]
[1717334414549,0.09950606,3791.3,3791.0,5.12255]
[1717334414749,2.4944,3791.9,3791.0,5.12255]
[1717334414942,0.09950606,3791.2,3791.0,5.12255]
[1717334415115,2.4944,3791.9,3791.1,0.512255]
[1717334415317,2.4944,3791.9,3791.0,5.12255]
[1717334415665,0.09957266,3791.8,3791.0,5.12255]
[1717334419257,0.09957266,3791.8,3791.3,2.63761]
[1717334419556,0.09957266,3791.8,3791.0,2.4848]
[1717334419965,30.762742,3792.0,3791.0,2.4848]
[1717334420257,30.762742,3792.0,3791.1,0.24848]
[1717334420565,0.09969529,3791.9,3791.5,2.63741]
[1717334424551,0.09969529,3791.9,3791.8,2.63726]
[1717334431552,0.13278915,3791.9,3791.8,2.63726]
[1717334436328,0.13278915,3791.9,3791.8,5.09476]
[1717334436474,0.13278915,3791.9,3791.8,5.604236]
[1717334442780,0.13278915,3791.9,3791.8,3.146736]
[1717334443915,0.13278915,3791.9,3791.8,5.604236]
[1717334444078,0.13278915,3791.9,3791.8,3.146736]
[1717334459119,30.762742,3792.0,3791.8,3.146736]
[1717334459120,30.762742,3792.0,3791.8,8.421256]
[1717334459316,27.01691761,3792.0,3791.9,3.4382136]
[1717334459535,26.58391761,3792.0,3791.9,6.4382136]
[1717334460299,26.58391761,3792.0,3791.9,5.8882136]
[1717334460842,26.58391761,3792.0,3791.9,0.5428136]
[1717334463110,26.58391761,3792.0,3791.8,2.63726]
[1717334464329,28.88151761,3792.0,3791.8,2.63726]
[1717334464510,26.58391761,3792.0,3791.8,2.63726]
[1717334465536,26.58391761,3792.0,3791.9,2.3454]
[1717334465936,26.58391761,3792.0,3791.9,2.8954]
[1717334466231,26.58391761,3792.0,3791.9,3.712392]
[1717334469707,26.58391761,3792.0,3791.9,1.366992]
[1717334470013,26.71340826,3792.0,3791.9,0.816992]
[1717334472720,26.71340826,3792.0,3791.8,2.63726]
[1717334475836,2.345,3791.9,3791.8,2.63726]
[1717334476114,2.47438212,3791.9,3791.8,2.63726]
[1717334482569,2.47438212,3791.9,3791.5,2.63746]
[1717334517242,0.12938212,3791.9,3791.5,2.63746]
[1717334519663,0.12938212,3791.9,3791.5,3.147816]
[1717334521783,0.12938212,3791.9,3791.5,3.085816]
[1717334522219,0.12938212,3791.9,3791.8,2.63726]
[1717334527711,0.12938212,3791.9,3791.8,5.05166]
[1717334528530,26.58391761,3792.0,3791.8,5.05166]
[1717334528735,26.58391761,3792.0,3791.9,0.505166]
[1717334529120,26.71335924,3792.0,3791.9,0.505166]
[1717334531349,26.71335924,3792.0,3791.9,2.919566]
[1717334531543,26.71335924,3792.0,3791.9,3.469566]
[1717334557091,26.71335924,3792.0,3791.9,1.055166]
[1717334563766,26.46110007,3792.0,3791.9,1.055166]
[1717334566003,26.46110007,3792.0,3791.9,0.505166]
[1717334566203,26.46110007,3792.0,3791.8,2.63726]
[1717334586599,26.46110007,3792.0,3791.3,2.63755]
[1717334586600,0.1276649,3794.2,3794.1,2.63567]
[1717334586768,0.1276649,3794.2,3794.0,0.15224877]
[1717334586769,0.69772941,3794.2,3794.0,0.15224877]
[1717334586969,2.4723,3794.1,3791.8,2.3847]
[1717334587136,2.4723,3793.9,3792.7,2.63661]
[1717334587536,2.4723,3793.8,3792.7,2.63661]
[1717334587939,2.4723,3793.8,3792.2,2.63694]
[1717334588152,2.4723,3793.2,3792.0,1.58320027]
[1717334588367,2.4723,3793.0,3791.8,1.58320027]
[1717334588526,2.4723,3793.0,3791.4,2.63748]
[1717334588733,2.4723,3793.0,3790.4,0.80868558]
[1717334588734,2.4723,3793.0,3791.8,2.63722]
[1717334591772,2.4723,3792.9,3791.8,2.63722]
[1717334592068,5.4723,3792.9,3791.8,2.63722]
[1717334592259,0.810878,3792.8,3791.8,2.63722]
[1717334593080,2.4723,3792.7,3791.8,2.63722]
[1717334594092,0.09374461,3792.6,3791.8,2.63722]
[1717334599286,0.09374461,3792.6,3792.1,2.63702]
[1717334599615,0.09374461,3792.6,3791.1,2.63773]
[1717334599616,2.4723,3792.7,3792.4,2.63683]
[1717334600625,0.0937091,3792.6,3792.4,2.63683]
[1717334600914,2.4723,3792.7,3792.4,2.63683]
[1717334601422,0.09379073,3792.6,3792.4,2.63683]
[1717334601765,2.4723,3792.7,3792.4,2.63683]
[1717334602201,0.09379073,3792.6,3792.4,2.63683]
[1717334602716,2.4723,3792.7,3792.4,2.63683]
[1717334603073,0.09379073,3792.6,3792.4,2.63683]
[1717334603274,2.4723,3792.7,3792.4,2.63683]
[1717334603586,0.09379073,3792.6,3792.4,2.63683]
[1717334603841,2.4723,3792.7,3792.4,2.63683]
[1717334604226,0.09379073,3792.6,3792.4,2.63683]
[1717334604765,2.4723,3792.7,3792.4,2.63683]
[1717334605263,0.09379073,3792.6,3792.4,2.63683]
[1717334605671,2.4723,3792.7,3792.4,2.63683]
[1717334606173,0.09379073,3792.6,3792.4,2.63683]
[1717334606461,2.4723,3792.7,3792.4,2.63683]
[1717334606666,0.09379073,3792.6,3792.4,2.63683]
[1717334607166,2.4723,3792.7,3792.4,2.63683]
[1717334607576,0.09379073,3792.6,3792.4,2.63683]
[1717334607968,2.4723,3792.7,3792.4,2.63683]
[1717334608498,0.09379073,3792.6,3792.4,2.63683]
[1717334609085,2.4723,3792.7,3792.4,2.63683]
[1717334609594,0.09379073,3792.6,3792.4,2.63683]
[1717334609883,2.4723,3792.7,3792.4,2.63683]
[1717334610178,0.09379073,3792.6,3792.4,2.63683]
[1717334610681,2.3567,3792.5,3792.4,2.63683]
[1717334610849,2.45049073,3792.5,3792.4,2.63683]
[1717334613272,0.09379073,3792.5,3792.4,2.63683]
[1717334613462,2.3567,3792.9,3792.4,2.63683]
[1717334613658,2.3567,3792.9,3792.7,2.63661]
[1717334614192,0.09373397,3792.8,3792.7,2.63661]
[1717334615644,2.69547737,3792.8,3792.1,2.63703]
[1717334624567,2.69547737,3792.8,3792.6,2.63664]
[1717334624568,0.09373397,3792.8,3792.6,2.63664]
[1717334625099,2.3567,3793.2,3792.6,2.63664]
[1717334625267,0.09377947,3792.7,3792.6,2.63664]
[1717334625600,2.3567,3793.2,3792.6,2.63664]
[1717334625901,0.09377947,3793.1,3792.9,2.63648]
[1717334630126,0.09377947,3793.1,3791.8,4.97092]
[1717334630268,2.4432,3793.0,3791.8,2.63722]
[1717334630463,0.09409536,3792.9,3792.7,2.63663]
[1717334630711,2.4432,3793.3,3792.7,2.63663]
[1717334630864,0.09405633,3793.2,3792.7,2.63663]
[1717334631176,0.61139396,3793.2,3792.7,2.63663]
[1717334631805,0.09405633,3793.2,3792.7,2.63663]
[1717334645847,2.4432,3793.6,3792.5,2.3337]
[1717334645848,5.07907,3793.9,3792.9,2.63644]
[1717334646130,3.0,3793.8,3792.9,2.63644]
[1717334646495,2.730066,3793.7,3792.9,2.63644]
[1717334655433,2.730066,3793.7,3793.0,2.2764]
[1717334660351,0.094106,3793.7,3793.1,2.63635]
[1717334660717,2.63572,3794.1,3793.1,2.63635]
[1717334661043,3.13772849,3794.1,3793.1,2.63635]
[1717334661339,0.09422663,3794.0,3793.1,2.63635]
[1717334662317,0.09422663,3794.0,3793.3,2.63617]
[1717334666745,0.09422663,3794.0,3793.4,2.4162]
[1717334667511,0.09422663,3794.0,3793.5,2.63608]
[1717334667713,5.2567,3794.3,3793.5,2.63608]
[1717334667931,0.0942976,3794.1,3793.5,2.63608]
[1717334671313,0.0942976,3794.1,3793.4,2.4162]
[1717334671513,2.341,3794.6,3793.4,2.4162]
[1717334672026,0.09454595,3794.1,3793.4,2.4162]
[1717334673355,0.09454595,3794.1,3793.9,2.63575]
[1717334677279,0.09454595,3794.1,3793.5,2.63602]
[1717334679062,2.482,3794.0,3793.1,7.32]
[1717334679284,2.482,3794.0,3793.1,2.6363]
[1717334679645,0.09457433,3793.9,3793.1,2.6363]
[1717334680071,0.09457433,3793.9,3792.9,2.3915]
[1717334680379,2.482,3794.3,3792.9,2.3915]
[1717334680584,0.09457433,3794.1,3792.9,2.3915]
[1717334681608,0.09457433,3794.1,3793.6,2.63599]
[1717334683387,0.09457433,3794.1,3793.9,2.6358]
[1717334688598,0.09457433,3794.1,3793.3,2.63618]
[1717334688812,2.38497433,3794.1,3793.3,2.63618]
[1717334693110,0.09457433,3794.1,3793.2,2.4973]
[1717334694405,0.09457433,3794.1,3793.7,2.63588]
[1717334700535,2.4673,3794.0,3793.7,2.63588]
[1717334700712,0.09457433,3794.1,3793.7,2.63588]
[1717334700912,0.09459561,3793.9,3793.7,2.63588]
[1717334701152,2.5949649,3794.2,3793.7,2.63588]
[1717334701435,0.1276649,3794.2,3793.7,2.63588]
[1717334701638,0.09459561,3794.1,3793.7,2.63588]
[1717334703799,0.09459561,3794.1,3793.9,2.63581]
[1717334707144,0.1276649,3794.2,3794.1,2.63567]
[1717334713419,2.5327649,3794.2,3794.1,2.63567]
[1717334713955,0.21931602,3794.2,3793.9,2.63574]
[1717334714257,0.21931602,3794.2,3793.9,5.03134]
[1717334714614,0.1276649,3794.2,3793.9,5.03134]
[1717334715754,0.1276649,3794.2,3793.9,2.63574]
[1717334716128,0.09165823,3794.1,3793.9,2.63574]
[1717334719080,0.09165823,3794.1,3793.5,2.63605]
[1717334719377,2.4051,3794.0,3793.5,2.63605]
[1717334719715,0.09159426,3793.9,3793.5,2.63605]
[1717334719968,2.4051,3794.0,3793.5,2.63605]
[1717334720138,0.09149115,3793.9,3793.5,2.63605]
[1717334720522,2.4051,3794.0,3793.5,2.63605]
[1717334720921,0.0914556,3793.9,3793.5,2.63605]
[1717334721162,2.4051,3794.0,3793.5,2.63605]
[1717334721376,0.26242205,3793.9,3793.5,2.63605]
[1717334721536,2.4051,3793.8,3793.3,7.32]
[1717334722131,0.09140936,3793.7,3793.3,7.32]
[1717334722558,2.4051,3793.8,3793.3,7.32]
[1717334722780,0.09140936,3793.7,3793.3,7.32]
[1717334723074,2.4051,3793.8,3793.3,7.32]
[1717334723461,0.09140936,3793.7,3793.3,7.32]
[1717334723859,2.4051,3793.8,3793.3,7.32]
[1717334724074,0.09135246,3793.6,3793.1,2.63631]
[1717334724383,2.909177,3793.8,3793.1,2.63631]
[1717334724962,2.4051,3793.6,3793.1,2.63631]
[1717334725487,2.4051,3793.4,3792.7,2.63658]
[1717334726039,0.09135603,3793.3,3792.7,2.63658]
[1717334730480,2.4051,3793.4,3792.7,2.63658]
[1717334730655,2.64561,3793.4,3792.7,2.63658]
[1717334731075,2.3303,3793.2,3792.7,2.63658]
[1717334731686,0.09113197,3793.1,3792.7,2.63658]
[1717334735086,0.09113197,3793.1,3792.3,2.63685]
[1717334735087,2.3303,3793.0,3792.3,2.63685]
[1717334735298,2.3303,3793.0,3792.4,3.0]
[1717334735671,0.09113197,3792.9,3792.4,3.0]
[1717334737474,0.09113197,3792.9,3792.3,2.63685]
[1717334739392,2.3303,3792.8,3792.3,2.63685]
[1717334739603,0.09091858,3792.7,3792.3,2.63685]
[1717334739798,2.3303,3792.8,3792.3,2.63685]
[1717334739971,0.09091858,3792.7,3792.3,2.63685]
[1717334740156,2.3303,3792.8,3792.3,2.63685]
[1717334740353,0.09091858,3792.7,3792.3,2.63685]
[1717334740559,2.3303,3792.8,3792.3,2.63685]
[1717334740955,0.09091858,3792.7,3792.3,2.63685]
[1717334741186,2.3303,3792.8,3792.3,2.63685]
[1717334741394,0.09091858,3792.7,3792.3,2.63685]
[1717334741584,2.3303,3792.8,3792.3,2.63685]
[1717334741786,0.09091858,3792.7,3792.3,2.63685]
[1717334741985,2.3303,3792.8,3792.3,2.63685]
[1717334742187,0.09091858,3792.7,3792.3,2.63685]
[1717334742499,2.3303,3792.8,3792.3,2.63685]
[1717334742678,0.09091858,3792.6,3792.3,2.63685]
[1717334742876,2.3303,3792.8,3792.3,2.63685]
[1717334743203,0.09091858,3792.5,3792.3,2.63685]
[1717334743408,2.3303,3792.4,3792.3,2.63685]
[1717334743707,2.42115454,3792.4,3792.3,2.63685]
[1717334747290,0.09085454,3792.4,3792.3,2.63685]
[1717334747675,2.4325,3793.8,3792.3,2.63685]
[1717334747676,2.4325,3793.8,3793.0,2.63638]
[1717334747879,0.54325,3793.7,3793.0,2.63638]
[1717334748218,0.09059485,3793.7,3793.0,2.63638]
[1717334748514,2.4325,3793.8,3793.0,2.63638]
[1717334748892,0.09059485,3793.7,3793.0,2.63638]
[1717334749308,2.4325,3793.8,3793.0,2.63638]
[1717334749810,0.09059485,3793.7,3793.0,2.63638]
[1717334749996,2.4325,3793.8,3793.0,2.63638]
[1717334750315,0.09059485,3793.6,3793.0,2.63638]
[1717334750615,2.4325,3793.8,3793.0,2.63638]
[1717334750945,0.09086518,3793.5,3793.0,2.63638]
[1717334751225,5.575252,3793.8,3792.3,9.7808]
[1717334751226,0.09086518,3793.4,3792.6,2.63666]
[1717334751426,5.575252,3793.8,3792.6,2.63666]
[1717334751427,5.06843,3793.8,3792.6,2.63666]
[1717334751710,0.09086518,3793.3,3792.6,2.63666]
[1717334751923,5.06843,3793.8,3792.6,2.63666]
[1717334752478,0.09086518,3793.7,3792.6,2.63666]
[1717334756427,0.09086518,3793.7,3792.6,2.63666]
[1717334757517,2.63605,3793.6,3792.6,2.63666]
[1717334758140,0.09086518,3793.5,3792.6,2.63666]
[1717334760242,0.09086518,3793.5,3792.8,2.6365]
[1717334760390,0.09086518,3793.5,3793.0,2.63637]
[1717334760826,2.63581,3793.9,3793.0,2.63637]
[1717334761006,0.09086518,3793.4,3793.0,2.63637]
[1717334761459,0.09081185,3793.3,3793.0,2.63637]
[1717334761633,2.63581,3793.9,3793.0,2.63637]
[1717334761833,3.15540749,3793.9,3793.0,2.63637]
[1717334762417,0.09081185,3793.8,3793.0,2.63637]
[1717334763443,2.4325,3793.7,3793.0,2.63637]
[1717334763611,2.63601,3793.6,3792.7,2.4608]
[1717334764129,0.09081185,3793.5,3792.8,2.63654]
[1717334765443,0.09081185,3793.5,3793.1,2.63634]
[1717334765634,5.06829,3794.0,3793.2,2.4608]
[1717334765940,0.09081185,3793.4,3793.2,2.4608]
[1717334766108,5.06829,3794.0,3793.2,2.4608]
[1717334766425,5.06829,3794.0,3793.3,2.63622]
[1717334766831,0.09081185,3793.9,3793.3,2.63622]
[1717334774060,5.09329,3793.8,3792.9,2.63646]
[1717334774219,0.51841018,3793.7,3792.9,2.63646]
[1717334774421,0.60976622,3793.7,3792.9,2.63646]
[1717334775556,2.63605,3793.6,3792.6,2.6367]
[1717334775924,0.09129559,3793.5,3792.6,2.6367]
[1717334776629,2.4574,3793.3,3792.6,2.6367]
[1717334776835,0.60966576,3793.2,3792.6,2.6367]
[1717334777861,0.60966576,3793.2,3792.3,2.63691]
[1717334780468,0.0911782,3793.2,3792.3,2.63691]
[1717334781025,2.4574,3793.3,3792.3,2.63691]
[1717334787671,2.4574,3793.3,3792.5,2.63671]
[1717334790585,2.4099,3793.1,3792.1,4.98329]
[1717334790787,0.504622,3793.0,3792.1,2.63699]
[1717334790938,2.4099,3792.9,3792.1,2.63699]
[1717334791339,0.0906755,3792.8,3792.1,2.63699]
[1717334798201,0.0906755,3792.8,3792.1,2.63705]
[1717334798360,0.0906755,3792.8,3792.3,2.6369]
[1717334798757,2.63645,3793.0,3792.3,2.6369]
[1717334798999,0.0903411,3792.7,3791.2,0.2850518]
[1717334799177,2.4099,3792.8,3791.3,2.4977]
[1717334799681,5.41616,3793.4,3791.1,2.6377]
[1717334799682,2.63714,3792.0,3791.1,2.6377]
[1717334799976,0.09021657,3791.9,3791.1,2.6377]
[1717334800315,0.09021657,3791.9,3791.2,3.0]
[1717334800869,5.04719,3791.8,3790.9,2.63784]
[1717334801178,0.08997104,3791.7,3790.9,2.63784]
[1717334801562,5.04719,3791.8,3790.9,2.63784]
[1717334802376,2.4099,3791.8,3790.9,2.63784]
[1717334802777,0.08997104,3791.7,3790.9,2.63784]
[1717334809310,0.33995814,3791.7,3790.9,2.63784]
[1717334812808,2.2755,3791.6,3790.9,2.63784]
[1717334813149,0.08967919,3791.5,3790.9,2.63784]
[1717334818745,2.2755,3791.6,3790.9,2.63784]
[1717334819460,0.08963291,3791.5,3790.9,2.63784]
[1717334829096,2.3649,3791.4,3790.5,2.63811]
[1717334833515,2.3649,3791.4,3790.7,2.63798]
[1717334836320,2.3649,3791.4,3790.9,2.63783]
[1717334837152,2.3649,3791.8,3791.1,2.63769]
[1717334837323,2.86511,3791.8,3791.1,2.63769]
[1717334838044,0.08944424,3791.7,3791.1,2.63769]
[1717334840864,0.08944424,3791.7,3790.8,2.2887]
[1717334841126,0.08944424,3791.7,3791.5,2.63741]
[1717334841446,0.0895617,3791.6,3791.5,2.63741]
[1717334841826,2.3649,3792.3,3791.5,2.63741]
[1717334842365,0.0895617,3792.2,3791.8,2.63724]
[1717334842728,2.3649,3792.3,3791.8,2.63724]
[1717334842930,0.0895617,3792.2,3791.8,2.63724]
[1717334843163,0.53549417,3792.2,3791.8,2.63724]
[1717334843677,0.0895617,3792.1,3791.8,2.63724]
[1717334845553,2.3649,3792.3,3791.8,2.63724]
[1717334845766,0.0895617,3792.2,3791.8,2.63724]
[1717334846452,2.3649,3792.3,3791.8,2.63724]
[1717334846648,0.0895617,3792.1,3791.8,2.63724]
[1717334846868,2.3649,3792.3,3791.8,2.63724]
[1717334847063,0.0895617,3792.0,3791.8,2.63724]
[1717334847366,0.0895617,3791.9,3791.8,2.63724]
[1717334847756,2.3649,3792.3,3791.8,2.63724]
[1717334847960,0.0895617,3792.2,3791.8,2.63724]
[1717334848171,0.0895617,3792.2,3792.1,2.63706]
[1717334848474,2.284,3792.8,3792.4,2.6368]
[1717334848977,2.63629,3793.3,3792.4,2.6368]
[1717334848978,0.08972544,3792.7,3792.4,2.6368]
[1717334849376,2.63646,3793.0,3792.0,2.63711]
[1717334849599,0.09000663,3792.6,3791.3,2.4678]
[1717334849884,2.5124,3792.9,3792.1,2.63702]
[1717334850235,0.09000663,3792.8,3792.1,2.63702]
[1717334861792,0.09000663,3792.8,3792.3,2.63685]
[1717334867506,2.41660663,3792.8,3792.6,2.63669]
[1717334869300,2.41660663,3792.8,3792.2,2.63692]
[1717334882302,2.63666,3792.7,3791.9,2.63718]
[1717334882552,2.3044,3792.6,3791.9,2.63718]
[1717334882689,2.3044,3792.4,3791.6,2.63739]
[1717334883001,2.3044,3792.2,3791.6,2.63739]
[1717334883403,0.09031976,3792.1,3791.6,2.63739]
[1717334884126,2.3044,3792.0,3791.2,2.63765]
[1717334886914,2.3044,3792.0,3791.5,2.63744]
[1717334887344,0.09005997,3791.9,3791.5,2.63744]
[1717334887503,0.09005997,3791.9,3791.5,4.94164]
[1717334887713,2.2662,3792.3,3791.8,2.63725]
[1717334887915,0.09009912,3792.2,3791.8,2.63725]
[1717334888233,2.2662,3792.3,3791.8,2.63725]
[1717334888430,0.09009912,3792.1,3791.8,2.63725]
[1717334888620,2.2662,3792.3,3791.8,2.63725]
[1717334888819,0.09009912,3792.0,3791.8,2.63725]
[1717334889024,2.2662,3792.3,3791.8,2.63725]
[1717334889288,0.09009912,3791.9,3791.8,2.63725]
[1717334889408,2.2662,3792.3,3791.8,2.63725]
[1717334889614,0.09009912,3791.9,3791.8,2.63725]
[1717334889837,2.2662,3792.3,3791.8,2.63725]
[1717334890040,0.09009912,3791.9,3791.8,2.63725]
[1717334890244,2.2662,3792.3,3791.8,2.63725]
[1717334890471,0.09009912,3791.9,3791.8,2.63725]
[1717334890615,2.2662,3792.3,3791.8,2.63725]
[1717334891323,0.09009912,3792.2,3791.8,2.63725]
[1717334891505,2.2662,3792.3,3791.8,2.63725]
[1717334891932,0.09009912,3792.2,3791.8,2.63725]
[1717334892150,2.2662,3792.3,3791.8,2.63725]
[1717334892512,0.09009912,3792.2,3791.8,2.63725]
[1717334892853,2.2662,3792.3,3791.8,2.63725]
[1717334893054,0.09009912,3792.1,3791.8,2.63725]
[1717334893257,2.2662,3792.3,3791.8,2.63725]
[1717334893420,0.09009912,3792.0,3791.8,2.63725]
[1717334893627,2.2662,3792.3,3791.8,2.63725]
[1717334893820,0.09009912,3791.9,3791.8,2.63725]
[1717334894016,2.63647,3793.0,3791.8,2.63725]
[1717334894274,0.09009912,3791.9,3791.6,5.27479]
[1717334894464,2.2662,3792.9,3792.5,2.63673]
[1717334894821,0.0901703,3792.8,3792.5,2.63673]
[1717334896319,2.2662,3793.2,3792.5,2.63673]
[1717334896790,0.0901703,3793.1,3792.5,2.63673]
[1717334906081,0.0901703,3793.1,3792.8,2.63656]
[1717334906460,2.4842,3793.6,3792.8,2.63656]
[1717334906665,2.4842,3793.6,3793.1,2.63633]
[1717334907172,2.3044,3793.8,3793.1,2.63633]
[1717334907377,2.798426,3793.8,3793.1,2.63633]
[1717334908171,0.09105958,3793.7,3793.1,2.63633]
[1717334908376,4.94042,3793.6,3792.7,2.63664]
[1717334908574,0.09105958,3793.7,3793.1,2.63634]
[1717334908849,2.3044,3793.4,3793.1,2.63634]
[1717334909092,2.3044,3793.4,3792.7,2.63657]
[1717334910347,0.09099915,3793.3,3792.7,2.63657]
[1717334919576,0.09099915,3793.3,3792.9,2.63644]
[1717334933617,2.3394,3793.2,3792.9,2.63644]
[1717334933921,0.09094222,3793.1,3792.9,2.63644]
[1717334935149,0.09094222,3793.1,3792.9,2.63644]
[1717334936426,0.33397644,3793.1,3792.6,2.6367]
[1717334940291,0.09094222,3793.1,3792.6,2.6367]
[1717334941431,2.3394,3793.2,3792.6,2.6367]
[1717334941599,0.08782392,3793.1,3792.6,2.6367]
[1717334941805,2.3394,3793.2,3792.6,2.6367]
[1717334942020,0.08777413,3793.1,3792.6,2.6367]
[1717334942190,2.3394,3793.2,3792.6,2.6367]
[1717334942391,0.08777413,3793.1,3792.6,2.6367]
[1717334942591,2.3394,3793.2,3792.6,2.6367]
[1717334942995,0.08777413,3793.1,3792.6,2.6367]
[1717334943193,2.3394,3793.2,3792.6,2.6367]
[1717334943526,0.08777413,3793.1,3792.9,2.6365]
[1717334943826,2.3394,3793.6,3792.9,2.6365]
[1717334944029,0.08777413,3793.5,3792.9,2.6365]
[1717334946340,0.08777413,3793.5,3792.6,2.456]
[1717334946507,0.08777413,3793.5,3793.3,2.63615]
[1717334946697,2.2813,3793.9,3793.3,2.63615]
[1717334946903,0.08784527,3793.4,3793.3,2.63615]
[1717334947103,2.2813,3793.9,3793.3,2.63615]
[1717334947304,0.08792351,3793.4,3793.3,2.63615]
[1717334947505,2.2813,3793.9,3793.3,2.63615]
[1717334947705,0.08792351,3793.4,3793.3,2.63615]
[1717334948050,0.08796619,3793.4,3793.3,2.63615]
[1717334948204,2.2813,3793.9,3793.3,2.63615]
[1717334948404,0.08796619,3793.8,3793.3,2.63615]
[1717334950946,0.08796619,3793.8,3792.6,2.456]
[1717334950947,0.08796619,3793.8,3793.0,2.63643]
[1717334952885,2.2813,3793.5,3793.0,2.63643]
[1717334953240,0.0879164,3793.4,3793.0,2.63643]
[1717334956781,2.2813,3793.6,3793.0,2.63643]
[1717334956998,0.08785239,3793.3,3793.0,2.63643]
[1717334957193,2.2813,3793.6,3793.0,2.63643]
[1717334957369,0.08785239,3793.2,3793.0,2.63643]
[1717334957699,0.08785239,3793.1,3793.0,2.63643]
[1717334958200,2.63588,3793.8,3793.0,2.63643]
[1717334958694,0.08785239,3793.7,3793.0,2.63643]
[1717334963098,0.08785239,3793.7,3793.3,2.63622]
[1717334963300,2.7632749,3794.2,3793.3,2.63622]
[1717334963468,0.0878346,3793.6,3793.3,2.63622]
[1717334963675,2.7632749,3794.2,3793.3,2.63622]
[1717334963875,0.0878346,3793.5,3793.3,2.63622]
[1717334964074,2.7632749,3794.2,3793.3,2.63622]
[1717334964310,0.0878346,3793.4,3793.3,2.63622]
[1717334964546,2.7632749,3794.2,3793.3,2.63622]
[1717334964896,0.08790573,3794.1,3793.3,2.63622]
[1717334968913,2.44980573,3794.1,3793.3,2.63622]
[1717334970136,0.08790573,3794.1,3793.4,2.3897]
[1717334970339,2.3619,3794.0,3793.4,2.3897]
[1717334970803,0.08801242,3793.9,3793.4,2.3897]
[1717334972527,0.08801242,3793.9,3793.5,2.63606]
[1717334972730,2.7632749,3794.2,3793.5,2.63606]
[1717334973132,0.08801954,3794.1,3793.5,2.63606]
[1717334973504,0.08801954,3794.1,3793.4,2.3897]
[1717334973709,0.08801954,3794.1,3793.9,2.63576]
[1717334974046,0.1276649,3794.2,3793.9,2.63576]
[1717334974703,0.08822576,3794.1,3793.9,2.63576]
[1717334975098,0.1276649,3794.2,3793.9,2.63576]
[1717334975539,0.08822576,3794.1,3793.9,2.63576]
[1717334975920,0.1276649,3794.2,3793.9,2.63576]
[1717334976522,0.08822576,3794.1,3793.9,2.63576]
[1717334977020,0.1276649,3794.2,3793.9,2.63576]
[1717334977405,0.08822576,3794.1,3793.9,2.63576]
[1717334977721,0.1276649,3794.2,3793.9,2.63576]
[1717334978218,0.08822576,3794.1,3793.9,2.63576]
[1717334978639,0.1276649,3794.2,3793.9,2.63576]
[1717334979049,0.08822576,3794.1,3793.9,2.63576]
[1717334979351,0.1276649,3794.2,3793.9,2.63576]
[1717334979669,0.08822576,3794.1,3793.9,2.63576]
[1717334979830,0.1276649,3794.2,3793.9,2.63576]
[1717334980025,0.08822576,3794.1,3793.9,2.63576]
[1717334980358,0.1276649,3794.2,3793.9,2.63576]
[1717334980749,0.08822576,3794.1,3793.9,2.63576]
[1717334981167,0.1276649,3794.2,3793.9,2.63576]
[1717334981556,0.08822576,3794.1,3793.9,2.63576]
[1717334981733,0.08822576,3794.1,3794.0,2.3306]
[1717334981937,0.1276649,3794.2,3794.0,2.3306]
[1717334982572,0.08822576,3794.1,3794.0,2.3306]
[1717334982889,0.1276649,3794.2,3794.0,2.3306]
[1717334983370,0.08827909,3794.1,3794.0,2.3306]
[1717334983738,0.1276649,3794.2,3794.0,2.3306]
[1717334984331,0.08827909,3794.1,3794.0,2.3306]
[1717334984736,0.1276649,3794.2,3794.1,2.63567]
[1717335001763,0.1276649,3794.2,3794.1,5.12587]
[1717335001968,2.483,3795.6,3795.0,2.63501]
[1717335002168,2.483,3795.6,3795.0,2.61411]
[1717335002367,2.483,3796.0,3795.0,2.61411]
[1717335002599,0.2483,3795.9,3795.0,2.61411]
[1717335003586,0.2483,3795.9,3795.3,2.6348]
[1717335004067,5.11718,3796.3,3795.3,5.125]